Cogmind - Beta 11 X8 @@@ ROGUE MODE // 2021.11.26 @ 02:33:01 Player: Runia Result: Destroyed by X-62 Marksman with Gauss Rifle Performance ------------- Evolutions (4) 2000 Regions Visited (11) 2200 Robots Destroyed (182) 910 Value Destroyed (5678) 5678 Prototype IDs (59) 1180 Alien Tech Used (1) 200 Bonus (1177) 1177 TOTAL SCORE: 13345 Bonus ------- High Alert Combat Kills 523 Follower Combat Kills 54 Aligned with FarCom 300 Met Data Miner 300 Cogmind --------- Core Integrity 0/850 Matter 300/300 Energy 95/450 System Corruption 17% Temperature Cool (0) Movement Core (750) Ox14 Location -6/Factory Parts ------- > --- POWER (1) -------- (None) > --- PROPULSION (5) --- (None) > --- UTILITY (6) ------ High-capacity Storage Unit Energy Well Enhanced Optical Array Advanced Terrain Scan Processor > --- WEAPON (4) ------- (None) > --- INVENTORY (20) --- Advanced Heat Sink Improved Energy Well Improved Energy Well High-capacity Matter Pod (200) Experimental Sensor Array Improved Terrain Scanner Improved Particle Charger Experimental ECM Suite Experimental Thermal Shield EM Dispersion Field EM Dispersion Field EM Dispersion Field EM Dispersion Field Authchip [Propulsion] Authchip [Weapon] Sensor Drone Bay (20/20) Gauss Rifle Rocket Launcher Plasma Lance Plasma Lance Peak State ------------ > --- POWER ------------ Light Nuclear Core > --- PROPULSION ------- Improved Heavy Treads Enhanced Flexi-carbon Leg Experimental Myomer Leg Experimental Myomer Leg > --- UTILITY ---------- Improved Cooling System Improved Cooling System High-capacity Storage Unit Energy Well Enhanced Optical Array Advanced Terrain Scan Processor > --- WEAPON ----------- Advanced Plasma Rifle Advanced Plasma Rifle Advanced Plasma Rifle Advanced Plasma Rifle > --- INVENTORY -------- Advanced Heat Sink Improved Energy Well Improved Energy Well High-capacity Matter Pod Experimental Sensor Array Improved Terrain Scanner Improved Particle Charger Experimental ECM Suite Experimental Thermal Shield EM Dispersion Field EM Dispersion Field EM Dispersion Field EM Dispersion Field Authchip [Propulsion] Authchip [Weapon] Sensor Drone Bay Gauss Rifle Rocket Launcher Plasma Lance Plasma Lance [Rating: 109] Favorites ----------- Power Improved Deuterium Engine Engine Improved Deuterium Engine Power Core Micro Nuclear Core Reactor Antimatter Reactor Propulsion Enhanced Flexi-carbon Leg Treads Light Treads Leg Enhanced Flexi-carbon Leg Wheel Armored Huge Wheel Utility High-capacity Storage Unit Device Improved Cooling System Storage High-capacity Storage Unit Processor Advanced Terrain Scan Processor Hackware Hacking Suite Protection Layered Medium Armor Plating Weapon Heavy Particle Gun Energy Gun Heavy Particle Gun Energy Cannon Neutron Cannon Ballistic Gun Light Assault Rifle Launcher Rocket Launcher Impact Weapon Heavy Mace Build | -11 -10 -10 -10 -9 -8 -7 -7 -7 -7 -6 -6 ------- Run | Scr Mat Min Exi Min Mat Fac Low Low Dat Pro Fac Slots Evolved 8 | . . . . . 4 2 . . . . 2 Power . | . . . . . . . . . . . . Propulsion 3 | . . . . . 1 1 . . . . 1 Utility 4 | . . . . . 2 1 . . . . 1 Weapon 1 | . . . . . 1 . . . . . . Parts Attached 179 | 2 4 2 3 1 51 38 8 8 20 6 36 Power 8 | . . . . . 3 2 . . 1 . 2 Engine 3 | . . . . . 1 2 . . . . . Core 3 | . . . . . 2 . . . . . 1 Reactor 2 | . . . . . . . . . 1 . 1 Propulsion 35 | 2 1 1 2 . 6 7 2 . 3 . 11 Treads 5 | 2 1 1 . . . . . . . . 1 Leg 28 | . . . 2 . 6 5 2 . 3 . 10 Wheel 2 | . . . . . . 2 . . . . . Hover . | . . . . . . . . . . . . Flight . | . . . . . . . . . . . . Utility 65 | . 2 . 1 1 15 17 2 3 8 4 12 Device 37 | . 1 . . 1 7 10 1 3 4 4 6 Storage 4 | . 1 . 1 . 1 . . . . . 1 Processor 6 | . . . . . . 3 1 . . . 2 Hackware 5 | . . . . . 2 1 . . . . 2 Protection 13 | . . . . . 5 3 . . 4 . 1 Artifact . | . . . . . . . . . . . . Weapon 71 | . 1 1 . . 27 12 4 5 8 2 11 Energy Gun 29 | . . . . . 8 5 . 2 4 1 9 Energy Cannon 7 | . . . . . . 1 1 1 3 1 . Ballistic Gun 14 | . 1 . . . 11 . . . . . 2 Ballistic Cannon . | . . . . . . . . . . . . Launcher 9 | . . . . . 7 1 1 . . . . Special Weapon . | . . . . . . . . . . . . Impact Weapon 12 | . . 1 . . 1 5 2 2 1 . . Slashing Weapon . | . . . . . . . . . . . . Piercing Weapon . | . . . . . . . . . . . . Special Melee Weapon . | . . . . . . . . . . . . Unidentified Prototypes 12 | . . . . 1 5 . . 1 2 . 3 Corrupted Parts 1 | . . . . . . . . . . . 1 System Corruption 15 | . . . . . . . . . . . 15 Parts Lost 55 | . . . . . 9 6 1 . 14 2 23 Power 6 | . . . . . 2 1 . . . 1 2 Propulsion 17 | . . . . . 2 2 1 . 3 . 9 Utility 14 | . . . . . 4 2 . . 4 . 4 Weapon 18 | . . . . . 1 1 . . 7 1 8 Highest Loss Streak 12 | . . . . . 5 1 1 . 12 1 10 Average Slot Usage (%) 89 | . 89 99 100 100 98 90 90 89 78 77 87 Engine 6 | . 14 14 14 14 6 6 7 7 4 . . Reactor 1 | . . . . . . . . . 2 7 4 Treads 4 | . 28 28 16 . . . . . . . . Leg 19 | . . . 11 28 26 26 13 14 14 21 26 Wheel 1 | . . . . . . 1 7 7 4 . . Device 10 | . 3 14 14 14 17 8 7 7 9 14 11 Storage 8 | . 14 14 14 14 9 7 7 7 7 7 6 Processor 5 | . . . . . . 5 14 14 10 7 6 Hackware 1 | . . . . . . . . . . . 6 Protection 5 | . . . . . 6 8 7 7 6 7 4 Energy Gun 13 | . 26 10 . . 12 19 20 19 10 3 9 Energy Cannon 1 | . . . . . . . . . 3 9 1 Ballistic Gun 4 | . 1 14 14 14 13 . . . . . 6 Impact Weapon 2 | . . 3 14 14 . 2 2 2 3 . . Naked Turns . | . . . . . . . . . . . . Heaviest Build 98 | 13 29 29 49 62 76 82 78 73 81 98 84 Greatest Support 114 | 40 40 40 60 60 78 96 28 28 84 84 114 Greatest Overweight (x) 16 | . . . 1 1 1 2 2 2 4 1 16 Average Overweight (x) . | . . . . . . . 2 2 1 . . Largest Inventory Capacity 20 | 8 15 15 20 20 20 20 20 20 20 20 20 Average Capacity 18 | 8 10 15 16 20 20 20 20 20 20 20 20 Most Carried 20 | 5 10 14 14 18 20 20 20 20 20 16 20 Average Carried 16 | 3 5 11 13 16 18 19 18 20 17 15 15 Final Capacity 20 | 8 15 15 20 20 20 20 20 20 20 20 20 Final Carried 20 | 2 10 13 14 18 20 20 20 20 16 15 20 Class Distribution -------------------- 30% | Mutant 23% | Scavenger-Skirmisher 20% | Scavenger-Mutant 15% | Skirmisher 5% | Scavenger-Assassin Dominant Class ---------------- Mutant | -10/Materials Mutant | -10/Mines Mutant | -10/Exiles Mutant | -9/Mines Skirmisher | -8/Materials Scavenger-Skirmisher | -7/Factory Skirmisher | -7/Lower Caves Skirmisher | -7/Lower Caves Mutant | -7/Data Miner Scavenger-Mutant | -6/Proximity Caves Scavenger-Skirmisher | -6/Factory Resources | -11 -10 -10 -10 -9 -8 -7 -7 -7 -7 -6 -6 ----------- Run | Scr Mat Min Exi Min Mat Fac Low Low Dat Pro Fac Matter Collected 3402 | 200 61 21 30 40 1038 596 107 27 185 80 1017 Remotely . | . . . . . . . . . . . . Salvage Created 7268 | . 576 109 . 83 2330 1048 24 80 399 113 2506 Parts 341 | . 32 . . 3 130 50 2 1 12 5 106 Haulers Intercepted 11 | . 1 . . . 5 4 . . . . 1 Recyclers Shooed 9 | . 1 . . . 2 2 . . . . 4 Parts Field Recycled . | . . . . . . . . . . . . Retrieved Matter . | . . . . . . . . . . . . Parts Self-Destructed 7 | . . . . . . . 1 1 . 5 . Prevented 1 | . . . . . . . . 1 . . . Kills | -11 -10 -10 -10 -9 -8 -7 -7 -7 -7 -6 -6 ------- Run | Scr Mat Min Exi Min Mat Fac Low Low Dat Pro Fac Combat Hostiles Destroyed 117 | . 14 . . . 38 16 4 . 4 2 39 Guns 82 | . 14 . . . 22 12 . . . . 34 Cannons 9 | . . . . . . . . . 3 2 4 AOE 21 | . . . . . 13 4 4 . . . . Classes Destroyed 19 | . 7 . . . 8 1 . 1 . 1 1 Worker 19 | . . . . . 8 3 . . . . 8 Builder 13 | . 1 1 . . 6 1 . . . . 4 Tunneler 1 | . . . . . . . . . . . 1 Hauler 11 | . 1 . . . 5 4 . . . . 1 Recycler 10 | . 1 1 . 1 2 1 . . . . 4 Minesweeper 1 | . . . . . . . . 1 . . . Mechanic 2 | . . . . . 2 . . . . . . Operator 2 | . 1 . . . 1 . . . . . . Watcher 6 | . 1 . . . 3 . . . . . 2 Swarmer 30 | . 6 . . . 4 4 4 . . . 12 Cutter 1 | . . . . . 1 . . . . . . Grunt 49 | . 8 . . . 21 1 . . . . 19 Brawler 3 | . . . . . 1 . . . . . 2 Duelist 3 | . . . . . 1 . . . . . 2 Sentry 3 | . . . . . 3 . . . . . . Specialist 14 | . . . . . 6 8 . . . . . Hunter 3 | . . . . . . . . . . 2 1 Programmer 5 | . . . . . . 2 . . . . 3 Heavy 2 | . . . . . 1 1 . . . . . Enhanced Grunt 4 | . . . . . . . . . 4 . . Packrat 1 | . . . . . . . . 1 . . . Best Kill Streak 13 | . 3 1 . 1 13 4 4 1 2 1 10 Combat Bots Only 6 | . 3 . . . 6 4 4 . 2 1 6 Max Kills in Single Turn 3 | . 1 1 . 1 3 2 2 1 1 1 2 Gunslinging . | . . . . . . . . . . . . Exploded 3 | . . . . . 3 2 2 . . . . Melee . | . . . . . . . . . . . . Uniques/NPCs Destroyed . | . . . . . . . . . . . . Combat | -11 -10 -10 -10 -9 -8 -7 -7 -7 -7 -6 -6 -------- Run | Scr Mat Min Exi Min Mat Fac Low Low Dat Pro Fac Damage Taken 11522 | . 508 19 . . 2210 1416 170 . 2364 552 4283 Core 1837 | . 129 9 . . 289 69 72 . 328 81 860 Absorbed by Shields . | . . . . . . . . . . . . Core Remaining (%) 53 | 100 . . . 44 47 . . . . 21 . Volleys Fired 474 | . 60 . . . 127 48 7 18 49 19 146 Largest 4 | . 2 . . . 3 3 1 3 4 2 4 Hottest 352 | . 90 . . . 179 187 65 187 261 155 352 Shots Fired 1148 | . 119 . . . 343 115 7 29 91 31 413 Gun 1006 | . 119 . . . 328 109 . 17 40 9 384 Cannon 118 | . . . . . . 1 3 12 51 22 29 Launcher 24 | . . . . . 15 5 4 . . . . Special . | . . . . . . . . . . . . Kinetic 326 | . 2 . . . 175 . . . . . 149 Thermal 797 | . 117 . . . 153 110 3 29 91 31 263 Explosive 24 | . . . . . 15 5 4 . . . . Electromagnetic 1 | . . . . . . . . . . . 1 Robot Hit Streak 19 | . 6 . . . 12 19 2 6 10 4 13 Robot Miss Streak 15 | . 2 . . . 6 4 1 2 2 2 15 Penetration Max . | . . . . . . . . . . . . Secondary Targets 11 | . . . . . 3 1 . . . . 7 Max Gunslinging Chain 1 | . . . . . 1 1 . . . . 1 Shots Hit Robots 708 | . 69 3 . 3 193 75 2 14 74 10 265 Core Hits 417 | . 32 . . 1 107 35 5 3 27 4 203 Critical Kills 2 | . . . . . 1 . . . . . 1 Critical Parts Destroyed 4 | . . . . . 2 1 . . . . 1 Critical Strikes 31 | . 2 . . . 10 5 . . . . 14 Burn 25 | . 2 . . . 7 4 . . . . 12 Destroy 5 | . . . . . 3 . . . . . 2 Smash 1 | . . . . . . 1 . . . . . Melee Attacks 60 | . . 4 . 3 1 22 12 4 14 . . Impact 60 | . . 4 . 3 1 22 12 4 14 . . Slashing . | . . . . . . . . . . . . Piercing . | . . . . . . . . . . . . Sneak Attacks 10 | . . 3 . 2 . 3 . 1 1 . . Combat Hostiles . | . . . . . . . . . . . . Follow-up Attacks . | . . . . . . . . . . . . Damage Inflicted 15727 | . 807 141 . 80 4993 2012 430 283 1322 298 5361 Guns 10909 | . 807 . . . 3392 1330 . 235 384 35 4726 Cannons 1651 | . . . . . . 28 . . 727 263 633 Explosions 2385 | . . . . . 1589 366 430 . . . . Melee 768 | . . 141 . 80 . 288 . 48 211 . . Ramming 14 | . . . . . 12 . . . . . 2 Kinetic 3704 | . 14 . . . 1561 . . . . . 2129 Thermal 8856 | . 793 . . . 1831 1358 . 235 1111 298 3230 Explosive 2385 | . . . . . 1589 366 430 . . . . Electromagnetic . | . . . . . . . . . . . . Impact 768 | . . 141 . 80 . 288 . 48 211 . . Slashing . | . . . . . . . . . . . . Piercing . | . . . . . . . . . . . . Highest Corruption 17 | . . . . . . 2 2 2 2 2 17 Average Corruption 2 | . . . . . . 2 2 2 2 2 2 Corruption Purged . | . . . . . . . . . . . . Effects 76 | . . . . . . 17 7 10 5 13 24 Message Errors 28 | . . . . . . 8 4 4 . 4 8 Matter Fused 3 | . . . . . . . . . . . 3 Heat Flow Errors 18 | . . . . . . 4 1 4 2 4 3 Energy Discharges 10 | . . . . . . . . 1 3 1 5 Data Loss (minor) 15 | . . . . . . 4 2 1 . 3 5 Weapon Failures 2 | . . . . . . 1 . . . 1 . Overload Shots . | . . . . . . . . . . . . Overflow Damage 504 | . . 22 . . 40 228 45 44 125 . . Projectiles 19 | . . . . . . . . . 19 . . Explosions 85 | . . . . . 40 . 45 . . . . Melee 400 | . . 22 . . . 228 . 44 106 . . Knockbacks 2 | . . . . . . . . . 2 . . Impact 2 | . . . . . . . . . 2 . . Kinetic . | . . . . . . . . . . . . Secondary . | . . . . . . . . . . . . Self-Inflicted Damage 144 | . . . . . 106 . 38 . . . . Shots 5 | . . . . . 4 . 1 . . . . Rammed . | . . . . . . . . . . . . Targets Rammed 2 | . . . . . 1 . . . . . 1 Kicked 2 | . . . . . 1 . . . . . 1 Crushed . | . . . . . . . . . . . . Highest Temperature 404 | . 248 . . . 251 404 105 373 290 312 239 Average Temperature 86 | . 84 . . . 70 101 43 113 117 121 47 Received Heat Transfer 2360 | . 192 . . . 711 72 . . 342 60 983 Effects 12 | . 1 . . . 3 3 . 2 3 . . Shutdowns 2 | . . . . . . 1 . 1 . . . Energy Bleed 1 | . . . . . . . . 1 . . . Interference 9 | . 1 . . . 3 2 . . 3 . . Siege Activations . | . . . . . . . . . . . . Robots Corrupted . | . . . . . . . . . . . . Combat Hostiles . | . . . . . . . . . . . . Parts Fried 8 | . . 6 . . . 2 . . . . . Impact Corruptions 12 | . . 2 . . . 6 . 1 3 . . Robots Melted 5 | . . . . . 3 . . . 1 . 1 Combat Hostiles 5 | . . . . . 3 . . . 1 . 1 Parts Melted 40 | . 5 . . . 11 9 . 2 5 . 8 Heat Transferred 18985 | . 2243 . . . 4033 2886 . 481 2655 310 6377 Parts Sabotaged . | . . . . . . . . . . . . Parts Stolen . | . . . . . . . . . . . . Parts Stripped . | . . . . . . . . . . . . Power Chain Reactions . | . . . . . . . . . . . . Missiles Intercepted . | . . . . . . . . . . . . Alert | -11 -10 -10 -10 -9 -8 -7 -7 -7 -7 -6 -6 ------- Run | Scr Mat Min Exi Min Mat Fac Low Low Dat Pro Fac Peak Influence 791 | . 332 121 . 5 791 446 . . . . 674 Initial 354 | . . 19 . . 1 354 . . . . . Average 265 | . 111 50 . . 374 316 . . . . 332 Maximum Alert Level 3 | . 1 . . . 3 2 . . . . 2 Low Security (%) 42 | 100 85 100 . 100 37 . . . . . 36 Level 1 29 | . 14 . . . 14 84 . . . . 10 Level 2 25 | . . . . . 34 15 . . . . 53 Level 3 2 | . . . . . 13 . . . . . . Level 4 . | . . . . . . . . . . . . Level 5 . | . . . . . . . . . . . . High Security . | . . . . . . . . . . . . Max Security . | . . . . . . . . . . . . Squads Dispatched 44 | . 5 . . . 11 12 . . . . 16 Investigation 8 | . 3 . . . 3 . . . . . 2 Extermination 4 | . . . . . . 2 . . . . 2 Reinforcement 27 | . 2 . . . 7 10 . . . . 8 Assault 2 | . . . . . 1 . . . . . 1 Garrison 3 | . . . . . . . . . . . 3 Intercept . | . . . . . . . . . . . . Construction Impeded 5 | . . . . . 1 . . . . . 4 Haulers Reinforced 2 | . . . . . . 1 . . . . 1 Active Scanning Responses . | . . . . . . . . . . . . Cargo Convoy Interrupts 2 | . . . . . . 1 . . . . 1 Stealth | -11 -10 -10 -10 -9 -8 -7 -7 -7 -7 -6 -6 --------- Run | Scr Mat Min Exi Min Mat Fac Low Low Dat Pro Fac Distress Signals 5 | . 1 . . . 2 . . . . . 2 Communications Jammed . | . . . . . . . . . . . . Distress Signals . | . . . . . . . . . . . . Times Spotted 187 | . 28 3 . . 48 21 4 . 4 5 74 Peak Tracking Total 13 | . 3 3 . . 6 4 4 . 2 3 13 Tactical Retreats 17 | . 3 . . . 1 3 . . . . 10 Traps | -11 -10 -10 -10 -9 -8 -7 -7 -7 -7 -6 -6 ------- Run | Scr Mat Min Exi Min Mat Fac Low Low Dat Pro Fac Traps Triggered 4 | . 2 . . . 1 1 . . . . . Indirectly . | . . . . . . . . . . . . Trap Hack Attempts . | . . . . . . . . . . . . Triggered . | . . . . . . . . . . . . Disarmed . | . . . . . . . . . . . . Reprogrammed 6 | . . . . . 6 . . . . . . Reused 1 | . . . . . . . . . . . 1 Traps Extracted . | . . . . . . . . . . . . Installed 2 | . . . . . . . . . . . 2 Triggered 4 | . . . . . . 1 . 2 . . 1 Machines | -11 -10 -10 -10 -9 -8 -7 -7 -7 -7 -6 -6 ---------- Run | Scr Mat Min Exi Min Mat Fac Low Low Dat Pro Fac Machines Disabled 5 | . . 1 . . 2 1 . . 1 . . Max in Single Turn 1 | . . . . . 1 1 . . 1 . . Machines Sabotaged . | . . . . . . . . . . . . Garrisons Compromised 1 | . . . . . . 1 . . . . . Overloaded Fab Kills . | . . . . . . . . . . . . Hacking | -11 -10 -10 -10 -9 -8 -7 -7 -7 -7 -6 -6 --------- Run | Scr Mat Min Exi Min Mat Fac Low Low Dat Pro Fac Machines Accessed 42 | . 9 . 2 1 7 12 . . 4 . 7 Terminals 21 | . 6 . . . 6 5 . . . . 4 Fabricators 3 | . . . . . . 3 . . . . . Repair Stations 2 | . 1 . . . . . . . . . 1 Recycling Units 6 | . 2 . . . 1 2 . . . . 1 Scanalyzers 2 | . . . . . . 2 . . . . . Garrison Access 1 | . . . . . . . . . . . 1 Total Hacks 126 | . 25 . 2 1 20 35 . . 28 . 15 Successful 76 | . 12 . 2 1 8 15 . . 28 . 10 Failed 50 | . 13 . . . 12 20 . . . . 5 Catastrophic 5 | . 1 . . . 2 1 . . . . 1 Database Lockouts . | . . . . . . . . . . . . Manual 36 | . 9 . 1 . 12 13 . . . . 1 Terminals 71 | . 22 . . . 18 20 . . . . 11 Fabricators 8 | . . . . . . 8 . . . . . Repair Stations 3 | . 1 . . . . . . . . . 2 Recycling Units 9 | . 2 . . . 2 4 . . . . 1 Scanalyzers 3 | . . . . . . 3 . . . . . Garrison Access 1 | . . . . . . . . . . . 1 Terminal Hacks 61 | . 10 . 2 1 6 8 . . 28 . 6 Record 12 | . . . 1 . . . . . 11 . . Part Schematic 11 | . . . . . . 1 . . 9 . 1 Robot Schematic 6 | . . . . . 1 . . . 5 . . Robot Analysis 1 | . 1 . . . . . . . . . . Prototype ID Bank 12 | . 5 . . . 1 2 . . 3 . 1 Open Door 1 | . . . . 1 . . . . . . . Level Access Points 1 | . . . . . . . . . . . 1 Branch Access Points 2 | . . . . . . 1 . . . . 1 Terminal Index 3 | . 1 . . . . 1 . . . . 1 Alert Level 1 | . . . . . 1 . . . . . . Unreport Threat 2 | . 2 . . . . . . . . . . Locate Traps 1 | . . . . . 1 . . . . . . Reprogram Traps 1 | . . . . . 1 . . . . . . Maintenance Status 1 | . . . . . . 1 . . . . . Hauler Manifests 3 | . . . . . 1 1 . . . . 1 Zone Layout 2 | . 1 . . . . 1 . . . . . EX-Prototype ID Bank 1 | . . . 1 . . . . . . . . Fabricator Hacks 3 | . . . . . . 3 . . . . . Network Status 1 | . . . . . . 1 . . . . . Load Schematic 1 | . . . . . . 1 . . . . . Build 1 | . . . . . . 1 . . . . . Repair Station Hacks 2 | . . . . . . . . . . . 2 Scan Component 1 | . . . . . . . . . . . 1 Repair 1 | . . . . . . . . . . . 1 Recycling Unit Hacks 2 | . . . . . 1 . . . . . 1 Report Inventory 2 | . . . . . 1 . . . . . 1 Scanalyzer 1 | . . . . . . 1 . . . . . Insert Component 1 | . . . . . . 1 . . . . . Garrison Access Hacks 1 | . . . . . . . . . . . 1 Coupler Status 1 | . . . . . . . . . . . 1 Unauthorized Hacks 6 | . 2 . . . 1 3 . . . . . Terminals . | . . . . . . . . . . . . Fabricators 1 | . . . . . . 1 . . . . . Haulers 1 | . . . . . . 1 . . . . . Repair Stations . | . . . . . . . . . . . . Recycling Units 5 | . 2 . . . 1 2 . . . . . Reject 2 | . . . . . . 2 . . . . . Tunnel 3 | . 2 . . . 1 . . . . . . Scanalyzers . | . . . . . . . . . . . . Garrison Access . | . . . . . . . . . . . . Data Cores Recovered . | . . . . . . . . . . . . Used . | . . . . . . . . . . . . Hacking Detections 26 | . 7 . . . 5 10 . . . . 4 Full Trace Events 3 | . . . . . 1 . . . . . 2 Feedback Events . | . . . . . . . . . . . . Feedback Blocked . | . . . . . . . . . . . . Robot Schematics Acquired 6 | . . . . . 1 . . . 5 . . Robots Built 1 | . . . . . . 1 . . . . . Authchips 1 | . . . . . . 1 . . . . . Time 116 | . . . . . . 116 . . . . . Total Robot Build Rating 3 | . . . . . . 3 . . . . . Part Schematics Acquired 11 | . . . . . . 1 . . 9 . 1 Parts Built . | . . . . . . . . . . . . Authchips . | . . . . . . . . . . . . Time . | . . . . . . . . . . . . Total Part Build Rating . | . . . . . . . . . . . . Parts Repaired 1 | . . . . . . . . . . . 1 Time 50 | . . . . . . . . . . . 50 Parts Recycled . | . . . . . . . . . . . . Recycled Matter . | . . . . . . . . . . . . Retrieved Matter . | . . . . . . . . . . . . Retrieved Components . | . . . . . . . . . . . . Parts Scanalyzed 1 | . . . . . . 1 . . . . . Part Schematics Acquired . | . . . . . . . . . . . . Parts Damaged . | . . . . . . . . . . . . Bothacking | -11 -10 -10 -10 -9 -8 -7 -7 -7 -7 -6 -6 ------------ Run | Scr Mat Min Exi Min Mat Fac Low Low Dat Pro Fac Used RIF Installer . | . . . . . . . . . . . . Robots Hacked . | . . . . . . . . . . . . Non-combat . | . . . . . . . . . . . . Combat . | . . . . . . . . . . . . Robot Hacks Applied . | . . . . . . . . . . . . Relay Couplers Released . | . . . . . . . . . . . . Fabnet Peak Effective % . | . . . . . . . . . . . . Robots Rewired . | . . . . . . . . . . . . Allies Hacked . | . . . . . . . . . . . . Hacks Repelled . | . . . . . . . . . . . . Allies | -11 -10 -10 -10 -9 -8 -7 -7 -7 -7 -6 -6 -------- Run | Scr Mat Min Exi Min Mat Fac Low Low Dat Pro Fac Total Allies 7 | . . 4 . . . 3 . . . . . Largest Group 4 | . . 4 3 3 3 2 . . . . . Highest-Rated Group 71 | . . 71 40 40 40 62 . . . . . Highest-Rated Ally 31 | . . 31 16 16 16 31 . . . . . Total Orders 5 | . . . . . . 1 . . . 3 1 STAY 1 | . . . . . . . . . . 1 . FOLLOW 1 | . . . . . . . . . . 1 . AID 1 | . . . . . . 1 . . . . . RETURN 2 | . . . . . . . . . . 1 1 Ally Attacks 30 | . . 13 . . 8 9 . . . . . Total Damage 427 | . . 152 . . 74 201 . . . . . Kills 11 | . . 7 . . 1 3 . . . . . Allies Corrupted . | . . . . . . . . . . . . Allies Melted . | . . . . . . . . . . . . Intel | -11 -10 -10 -10 -9 -8 -7 -7 -7 -7 -6 -6 ------- Run | Scr Mat Min Exi Min Mat Fac Low Low Dat Pro Fac Robot Analysis Total 1 | . 1 . . . . . . . . . . Derelict Logs Recovered 5 | . . 1 . 2 . . . 1 . 1 . Drone Launches 2 | . . . . . . . . . . 2 . Drone Recoveries 2 | . . . . . . . . . . 1 1 Exploration | -11 -10 -10 -10 -9 -8 -7 -7 -7 -7 -6 -6 ------------- Run | Scr Mat Min Exi Min Mat Fac Low Low Dat Pro Fac Turns Passed 11715 | 6 990 649 409 393 1497 1974 1123 720 474 1511 1969 Spaces Moved 6244 | 2 482 389 310 259 702 1134 814 486 190 673 803 Core 1 | . . . . . . . . . . . 1 Treads 1022 | 2 482 389 149 . . . . . . . . Legs 3556 | . . . 161 259 702 905 . . 54 673 802 Wheels 1665 | . . . . . . 229 814 486 136 . . Hover . | . . . . . . . . . . . . Flight . | . . . . . . . . . . . . Fastest Speed 90 | 160 160 160 90 90 90 105 130 130 120 120 100 Average Speed 137 | 160 160 160 123 144 100 128 130 130 136 189 127 Slowest Speed 850 | 160 160 160 240 170 173 190 130 130 400 190 850 Overloaded Moves . | . . . . . . . . . . . . Propulsion Burnouts . | . . . . . . . . . . . . Robots Hopped . | . . . . . . . . . . . . Cave-ins Triggered 1 | . . . . . . 1 . . . . . Exploration Rate (%) 57 | 2 97 88 70 59 51 28 73 55 80 77 12 Regions Visited 11 Branch Regions 7 Pre-discovered Areas 6 | . 2 1 1 . 1 . . . 1 . . Known Exits Taken 4 | . . . . 1 . 1 1 1 . . . Unknown Exits Taken 7 | 1 1 1 1 . 1 . . . 1 1 . Scrap Searched 10 | . . 3 . 2 . . 2 1 . 2 . Spaces Dug 55 | . . 1 . . 1 14 10 5 . 10 14 Terrain Destroyed 278 | . . 1 . . 155 40 37 5 . 13 27 Melee 29 | . . 1 . . 1 14 10 3 . . . Projectile 48 | . . . . . 6 . . 2 . 13 27 AOE 201 | . . . . . 148 26 27 . . . . Terrain Rammed . | . . . . . . . . . . . . Walls Destroyed . | . . . . . . . . . . . . Machines Disabled . | . . . . . . . . . . . . Actions | -11 -10 -10 -10 -9 -8 -7 -7 -7 -7 -6 -6 --------- Run | Scr Mat Min Exi Min Mat Fac Low Low Dat Pro Fac Total 8371 | 7 581 410 334 273 1284 1506 845 538 300 870 1423 Wait 1243 | . 26 10 18 6 346 229 . 17 21 173 397 Move 6233 | 1 481 388 309 258 701 1133 813 485 189 672 803 Hop . | . . . . . . . . . . . . Pick Up 97 | . 9 4 1 4 31 17 3 2 5 . 21 Fast Attach 42 | . 2 . 2 1 5 2 1 2 6 1 20 Attach 47 | 2 1 1 . . 12 14 1 . 7 1 8 Detach 2 | . . . . . . 1 . . . . 1 Swap 91 | . 1 1 1 . 34 22 6 7 7 4 8 Drop 78 | 4 1 2 3 1 26 18 2 3 2 . 16 Fire 474 | . 60 . . . 127 48 7 18 49 19 146 Melee 60 | . . 4 . 3 1 22 12 4 14 . . Ram . | . . . . . . . . . . . . Kick 2 | . . . . . 1 . . . . . 1 Crush . | . . . . . . . . . . . . Escape Stasis . | . . . . . . . . . . . . Rewire . | . . . . . . . . . . . . Trap 2 | . . . . . . . . . . . 2 Miscellaneous . | . . . . . . . . . . . . Route ------- -11/Scrapyard -10/Materials (discovered 5 exits: [*Mat x3] / [*Min x2]) -10/Mines (discovered 3 exits: [*Mat x2] / *Exi) -10/Exiles -9/Mines (discovered 2 exits: *Mat x2) -8/Materials -7/Factory (discovered 5 exits: *Fac x2 / Sto / *Low x2) -7/Lower Caves -7/Lower Caves (discovered 2 exits: *Fac / *Dat) -7/Data Miner -6/Proximity Caves -6/Factory (discovered 6 exits: Fac x4 / *Low x2) History --------- Turn | Location | Event 6 | -11/Scrapyard | Discovered new exit (range 1) 7 | -11/Scrapyard | Entered Materials 292 | -10/Materials | Discovered new exit (range 12) 311 | -10/Materials | Build established: Mutant 407 | -10/Materials | Discovered new exit (range 14) 490 | -10/Materials | Discovered new exit (range 6) 612 | -10/Materials | Discovered new exit (range 7) 860 | -10/Materials | Core integrity fell below 50% 928 | -10/Materials | Discovered new exit (range 11) 997 | -10/Materials | Entered Mines 1052 | -10/Mines | Received a Mining Laser from a helpful Derelict 1141 | -10/Mines | Assembled infested the area 1146 | -10/Mines | Assisted by a Guerilla fighting off Assembled 1239 | -10/Mines | Assisted by bots powering up and referring to "LRC-V3" 1285 | -10/Mines | Found a damaged Exp. Sensor Array with a note attached 1288 | -10/Mines | Found Prototype Device 1310 | -10/Mines | Discovered new exit (range 13) 1458 | -10/Mines | Discovered new exit (range 11) 1483 | -10/Mines | Deemed a non-threat by the Exiles lab entrance 1485 | -10/Mines | Discovered new exit (range 5) 1549 | -10/Mines | Learned location of Zion (-6) 1646 | -10/Mines | Entered Exiles 1646 | -10/Exiles | Accompanied by 3 allies 1686 | -10/Exiles | Met 8R-AWN 1712 | -10/Exiles | Met EX-HEX 1774 | -10/Exiles | Met EX-DEC 1808 | -10/Exiles | Met EX-BIN 1830 | -10/Exiles | Aligned with FarCom system 1832 | -10/Exiles | Given EX-Vault access code 1869 | -10/Exiles | Opened EX-Vault 1884 | -10/Exiles | Found Potential Leg 1888 | -10/Exiles | Found Potential Leg 1910 | -10/Exiles | Warned to stay clear of 0b10 Research branches 2024 | -10/Exiles | Discovered new exit (range 14) 2055 | -10/Exiles | Left Exiles lab with Potential Leg 2055 | -10/Exiles | Entered Mines 2055 | -9/Mines | Accompanied by 3 allies 2096 | -9/Mines | Met a Derelict bent on vengeance 2099 | -9/Mines | Identified exit to Materials 2121 | -9/Mines | Learned 4 Materials zone layouts 2128 | -9/Mines | Found the Drone Emporium 2132 | -9/Mines | Found Prototype Device 2132 | -9/Mines | Identified Sensor Drone Bay 2413 | -9/Mines | Discovered exit to Materials (range 8) 2429 | -9/Mines | Received a Rocket Launcher from a helpful Derelict 2448 | -9/Mines | Entered Materials 2448 | -8/Materials | Accompanied by 3 allies 2448 | -8/Materials | Evolved 4 slots: Propulsion x1, Utility x2, Weapon x1 2755 | -8/Materials | Build established: Scavenger-Skirmisher 3492 | -8/Materials | Build established: Skirmisher 3648 | -8/Materials | First assault squad dispatched 3793 | -8/Materials | Core integrity fell below 50% 3841 | -8/Materials | Discovered new exit (range 15) 3926 | -8/Materials | Lost 5 parts (1p2n2u) 3945 | -8/Materials | Entered Factory 3945 | -7/Factory | Evolved 2 slots: Propulsion x1, Utility x1 4133 | -7/Factory | Identified Exp. Sensor Array 4198 | -7/Factory | Build established: Scavenger-Skirmisher 4246 | -7/Factory | Crushed by falling debris 4247 | -7/Factory | Discovered new exit (range 11) 4424 | -7/Factory | Identified exit to Storage 4424 | -7/Factory | Identified exit to Lower Caves 4522 | -7/Factory | Build established: Scavenger-Assassin 4930 | -7/Factory | Cargo convoy interrupted 4980 | -7/Factory | Fabricated M-28 Smith (x1) 5125 | -7/Factory | Build established: Scavenger-Skirmisher 5237 | -7/Factory | Discovered new exit (range 15) 5919 | -7/Factory | Entered Lower Caves 5920 | -7/Lower Caves | Encountered a Warlord checkpoint 6230 | -7/Lower Caves | Build established: Skirmisher 6285 | -7/Lower Caves | Spotted B-75 Beast 6913 | -7/Lower Caves | Discovered new exit (range 13) 6971 | -7/Lower Caves | Build established: Mutant 7041 | -7/Lower Caves | Identified exit to Lower Caves 7042 | -7/Lower Caves | Entered another Lower Caves area 7043 | -7/Lower Caves | Encountered a Warlord checkpoint 7066 | -7/Lower Caves | Discovered new exit (range 13) 7441 | -7/Lower Caves | Build established: Skirmisher 7552 | -7/Lower Caves | Found Alien Artifact 7552 | -7/Lower Caves | Identified Core Expander 7552 | -7/Lower Caves | Installed Core Expander, added new Weapon slot 7581 | -7/Lower Caves | Discovered new exit (range 5) 7597 | -7/Lower Caves | Learned Factory trap positions 7761 | -7/Lower Caves | Identified exit to Data Miner 7762 | -7/Lower Caves | Entered Data Miner 7762 | -7/Data Miner | Discovered new exit (range 6) 7787 | -7/Data Miner | Met Data Miner 7812 | -7/Data Miner | Learned location of Section 7 (-2) 7812 | -7/Data Miner | Acquired the access code to Warlord's prototype stash 7815 | -7/Data Miner | Build established: Mutant 7831 | -7/Data Miner | Received God Mode back door access code from Data Miner 7904 | -7/Data Miner | Data Conduit disabled 8085 | -7/Data Miner | Core integrity fell below 50% 8108 | -7/Data Miner | Found Prototype Device 8109 | -7/Data Miner | Identified Exp. Thermal Shield 8111 | -7/Data Miner | Lost 12 parts (2n4u6w) 8236 | -7/Data Miner | Entered Proximity Caves 8375 | -6/Proximity Caves | Build established: Scavenger-Mutant 9047 | -6/Proximity Caves | Learned Factory stockpile data 9087 | -6/Proximity Caves | Spotted B-75 Beast 9736 | -6/Proximity Caves | Discovered new exit (range 7) 9743 | -6/Proximity Caves | Attracted the attention of an 0b10 checkpoint 9747 | -6/Proximity Caves | Entered Factory 9747 | -6/Factory | Accompanied by 1 ally 9747 | -6/Factory | Evolved 2 slots: Propulsion x1, Utility x1 9748 | -6/Factory | Loaded intel: 104 trap records 9973 | -6/Factory | Identified exit to Factory 10031 | -6/Factory | Identified exit to Lower Caves 10256 | -6/Factory | Repaired Lyr. Medium Armor Plating 10361 | -6/Factory | Spotted B-75 Beast 10529 | -6/Factory | Garrison activated, responded to threat 10647 | -6/Factory | Build established: Scavenger-Skirmisher 11147 | -6/Factory | First assault squad dispatched 11389 | -6/Factory | Lost 5 parts (1p2n2w) 11499 | -6/Factory | Cargo convoy interrupted 11556 | -6/Factory | Found Prototype Device 11587 | -6/Factory | Found Prototype Device 11594 | -6/Factory | Found Prototype Device 11602 | -6/Factory | Found Prototype Device 11606 | -6/Factory | Found Prototype Device 11613 | -6/Factory | System corruption reached 10% 11701 | -6/Factory | Core integrity fell below 50% 11713 | -6/Factory | Core integrity fell below 20% 11716 | -6/Factory | Destroyed by X-62 Marksman with Gauss Rifle Last Messages --------------- 11706_ Penetrated by Slug. 11706_ Adv. Plasma Rifle destroyed. 11707_ Slug penetrates K-01 Serf. 11707_ Exp. Myomer Leg destroyed. 11707_ Knocked back. 11708_ System corrupted: Energy discharge (-35). 11708_ Penetrated by Slug. 11710_ Knocked back. 11710_ Penetrated by Slug. 11710_ Slug penetrates Wall. 11711_ K-01 Serf cleans the Construction Platform. 11712_ Slug penetrates Wall. 11713_ Adv. Plasma Rifle destroyed. 11713_ Penetrated by Slug. 11713_ Slug penetrates Wall. 11714_ Penetrated by Slug. 11714_ Slug penetrates H-66 Slayer. 11716_ Slug penetrates Wall. 11716_ Penetrated by Slug. 11716_ K-01 Serf suffers critical hit (Destroy). Map ----- +----------------------------------------------------+ | ?????????????????????????????????????????????????? | | ?????????????????????????????????????????????????? | | ????????????????? ?^^??????????????]????????????? | | ????????????????? ?^^???????????????????????????? | | ????????????????? ?^^???????????????????????????? | | ????????????????? ??????????????????????????????? | | ????????????????# ??????????????????????????????? | | ????????????????# ??????????????????????????????? | | ????????????????# #?????????????????????????????? | | ????????????????# #?????????????????????????????? | | ????????????????# #???????????????????????????!?? | | ????????????????# #?????????????????????????????? | | ????????????????# #?????????????????????????????? | | ????????????????# #?????????????????????????????? | | ????????????????# #?????????????????????????????? | | ????????????????# #?????????????????????????????? | | #???????????????# #?????????????????????????????? | | # ???#########??# #?????????????????????????????? | | # ???#"""T"""#??# #?????????????????????????????? | | # ####""" """#### #?????????????????????????????? | | # #?#######????????????#????????? | | # o #?# ##########k #????????? | | #] """ """ """ ### k #????????? | | # "G" """ """ %%xg[ H x +????????? | | # " " """ """ %###x h x #????????? | | # %##?# h@k#######+#####?????????? | | + i######/#######?????????????????? | | #+############### # % h #?????????????????? | | ????????????????#g# k""""""" #?????????????????? | | ??????*?????????# # """"""" #?????????????????? | | ????????????????#g# *u""""""" #?????????????????? | | ????????????????# # t""""""" #?????????????????? | | ????????????????# # #?????????????????? | | ????????????????# # ! "" #?????????????????? | | ????????????????#g# *% #?????????????????? | | ?????^??????????# # = #?????????????????? | | ?????^??????????# # =!! ! #?????????????????? | | ?????^??????????# # %=%===[ #?????????????????? | | ????????????????#%# |!==[!=![ #?????????????????? | | ????????????????#%##[%"##/######?????????????????? | | ????????????????#%####![#=#!##???????????????????? | | ????????????????# #?#[ #%#!#????????????????????? | | ????????????????# #?### #=#?#????????????????????? | | ????????#########%#????## #??????????????????????? | | ????????# !! ## #?????" #??????????????????????? | | ????????# !/ ## #?????"%#??????????????????????? | | ????????# !/ ## #?????%%#??????????????????????? | | ????????# ##%#????##%###########????????????? | | ?????????? = ##%####??#*=% +????????????? | | ???????????? ##%#T ####%%= #???????????## | +----------------------------------------------------+ Best States ------------- Heat Dissipation 91 Energy Generation 21 Energy Capacity 510 Matter Stores 488 Matter Capacity 500 Sight Range 22 Robot Scan Range 20 Terrain Scan Range 16 Terrain Scan Density 210 Armor Coverage 600 Resistance: TH 30 Evasion (%) 57 Targeting Accuracy 8 Recoil Reduction 2 Particle Charging 20 Offensive Hacking 20 Authchip Count 3 Item Schematics ----------------- Enh. Optical Array | -7/Factory | Hacked Combat Drone Bay | -7/Data Miner | Free Lgt. Regenerative Plating | -7/Data Miner | Free Cld. Cesium-ion Thruster | -7/Data Miner | Free Exp. Targeting Computer | -7/Data Miner | Free Antimatter Cannon | -7/Data Miner | Free Hvy. Treads | -7/Data Miner | Free Imp. Focal Shield | -7/Data Miner | Free Adv. Plasma Cannon | -7/Data Miner | Free Hardcell Cannon | -7/Data Miner | Free KE Penetrator | -6/Factory | Hacked Robot Schematics ------------------ M-28 Smith | -8/Materials | Hacked M-14 Sweeper | -7/Data Miner | Free G-50 Soldier | -7/Data Miner | Free E-15 Imp | -7/Data Miner | Free H-55 Commando | -7/Data Miner | Free A-15 Conveyor | -7/Data Miner | Free Fabricated ------------ M-28 Smith | x1 | -7/Factory | Authchip Alien Tech Used ----------------- Core Expander Achievements -------------- None Challenges ------------ None Game ------ Seed EnergyGravitonShockpuncher Manual? 0 Play Time 01:12:15 Cumulative 517.3 hours Start 2021.11.26 @ 01:19:45 End 2021.11.26 @ 02:33:01 Sessions 1 Manual Loads 0 Difficulty Rogue Special Mode None Game No. 498 Rogue 498 Adventurer 0 Explorer 0 Win Type - Total 14 Types 9/1/3/1/0/0/0/0/0 Lore% 83 Gallery% 94 Achievement% 73 Wizard Run 0 Options --------- ASCII 0 Keyboard 0 Movement Mouse Keybinds 1 Fullscreen 2 Font 24/Smallcaps Map View 76x50 Tactical HUD 1 Map Filters NONE Filters NONE Steam 1 RUN: c63faa11-29bd-495e-852d-cc8c4e7d5a94